[Event "Titled Tuesday Blitz May 30 Late 2023"]
[White "Ladan, Nicholas"]
[Black "Rangel, Daniel"]
[WhiteFideId "30918855"]
[BlackFideId "2124475"]
[WhiteElo "2167"]
[BlackElo "2256"]
[Result "0-1"]
[Round "07"]
[TimeControl "180+2"]
[Date "2023.05.31"]
[WhiteClock "0:00:02"]
[BlackClock "0:00:08"]

1. d4 {[%clk 0:03:00]}  Nf6 {[%clk 0:02:59]} 2. c3 {[%clk 0:02:58]}  e6 {[%clk 0:03:00]} 3. Bg5 {[%clk 0:02:58]}  d5 {[%clk 0:02:59]} 4. Nf3 {[%clk 0:02:58]}  Be7 {[%clk 0:02:59]} 5. Nbd2 {[%clk 0:02:58]}  Ne4 {[%clk 0:02:59]} 6. Bxe7 {[%clk 0:02:56]}  Qxe7 {[%clk 0:02:58]} 7. Nxe4 {[%clk 0:02:56]}  dxe4 {[%clk 0:02:58]} 8. Nd2 {[%clk 0:02:54]}  f5 {[%clk 0:02:57]} 9. e3 {[%clk 0:02:54]}  O-O {[%clk 0:02:57]} 10. a4 {[%clk 0:02:52]}  Kh8 {[%clk 0:02:54]} 11. g3 {[%clk 0:02:50]}  Nd7 {[%clk 0:02:50]} 12. Be2 {[%clk 0:02:45]}  e5 {[%clk 0:02:48]} 13. Qb3 {[%clk 0:02:29]}  Nf6 {[%clk 0:02:32]} 14. O-O-O {[%clk 0:02:23]}  Be6 {[%clk 0:02:24]} 15. Bc4 {[%clk 0:02:23]}  Bxc4 {[%clk 0:02:21]} 16. Nxc4 {[%clk 0:02:24]}  exd4 {[%clk 0:02:20]} 17. Rxd4 {[%clk 0:02:20]}  Ng4 {[%clk 0:02:09]} 18. Rd2 {[%clk 0:02:10]}  Qf7 {[%clk 0:01:55]} 19. Kc2 {[%clk 0:01:59]}  Rad8 {[%clk 0:01:44]} 20. h3 {[%clk 0:01:50]}  Rxd2+ {[%clk 0:01:40]} 21. Nxd2 {[%clk 0:01:41]}  Qxb3+ {[%clk 0:01:41]} 22. Nxb3 {[%clk 0:01:42]}  Nxf2 {[%clk 0:01:40]} 23. Rh2 {[%clk 0:01:38]}  Nd3 {[%clk 0:01:39]} 24. Nd4 {[%clk 0:01:36]}  c6 {[%clk 0:01:30]} 25. a5 {[%clk 0:01:32]}  g6 {[%clk 0:01:17]} 26. b4 {[%clk 0:01:31]}  Rc8 {[%clk 0:01:12]} 27. g4 {[%clk 0:01:17]}  fxg4 {[%clk 0:01:04]} 28. hxg4 {[%clk 0:01:18]}  c5 {[%clk 0:01:05]} 29. bxc5 {[%clk 0:01:06]}  Rxc5 {[%clk 0:01:05]} 30. Nb3 {[%clk 0:01:00]}  Rg5 {[%clk 0:01:01]} 31. a6 {[%clk 0:00:36]}  bxa6 {[%clk 0:00:58]} 32. Nd2 {[%clk 0:00:37]}  Rxg4 {[%clk 0:00:54]} 33. c4 {[%clk 0:00:25]}  h5 {[%clk 0:00:43]} 34. Kc3 {[%clk 0:00:23]}  Ne5 {[%clk 0:00:25]} 35. Kd4 {[%clk 0:00:19]}  Nf3+ {[%clk 0:00:24]} 36. Nxf3 {[%clk 0:00:18]}  exf3+ {[%clk 0:00:25]} 37. e4 {[%clk 0:00:18]}  Rg2 {[%clk 0:00:22]} 38. Rh3 {[%clk 0:00:15]}  f2 {[%clk 0:00:18]} 39. Rf3 {[%clk 0:00:15]}  g5 {[%clk 0:00:18]} 40. e5 {[%clk 0:00:16]}  g4 {[%clk 0:00:18]} 41. Rf5 {[%clk 0:00:09]}  g3 {[%clk 0:00:16]} 42. e6 {[%clk 0:00:09]}  Rg1 {[%clk 0:00:16]} 43. e7 {[%clk 0:00:07]}  Re1 {[%clk 0:00:16]} 44. Re5 {[%clk 0:00:06]}  Rxe5 {[%clk 0:00:15]} 45. Kxe5 {[%clk 0:00:07]}  f1=Q {[%clk 0:00:16]} 46. e8=Q+ {[%clk 0:00:07]}  Kg7 {[%clk 0:00:16]} 47. Qe7+ {[%clk 0:00:05]}  Kg6 {[%clk 0:00:15]} 48. Qe8+ {[%clk 0:00:03]}  Kg5 {[%clk 0:00:14]} 49. Qe7+ {[%clk 0:00:02]}  Kg4 {[%clk 0:00:13]} 50. Qd7+ {[%clk 0:00:03]}  Kf3 {[%clk 0:00:11]} 51. c5 {[%clk 0:00:01]}  Qe2+ {[%clk 0:00:10]} 52. Kf6 {[%clk 0:00:01]}  Qe3 {[%clk 0:00:09]} 53. c6 {[%clk 0:00:02]}  g2 {[%clk 0:00:09]} 54. c7 {[%clk 0:00:02]}  g1=Q {[%clk 0:00:09]} 55. Qf5+ {[%clk 0:00:02]}  Qf4 {[%clk 0:00:09]} 56. Qxf4+ {[%clk 0:00:03]}  Kxf4 {[%clk 0:00:09]} 57. c8=Q {[%clk 0:00:04]}  Qg5+ {[%clk 0:00:09]} 58. Kf7 {[%clk 0:00:04]}  Qf5+ {[%clk 0:00:09]} 59. Kg7 {[%clk 0:00:01]}  Qxc8 {[%clk 0:00:09]} 60. Kh7 {[%clk 0:00:01]}  Kg5 {[%clk 0:00:08]} 61. Kg7 {[%clk 0:00:02]}  Qd7+ {[%clk 0:00:08]} 62. Kh8 {[%clk 0:00:03]}  Kg6 {[%clk 0:00:07]} 63. Kg8 {[%clk 0:00:02]}  Qc8# {[%clk 0:00:08]} 0-1


[Site "https://www.chess.com"]

[Event "Titled Tuesday Blitz May 30 Late 2023"]
[White "Lalanne, Pablo"]
[Black "Bringas Gomez, Artai"]
[WhiteFideId "112151"]
[BlackFideId "24534064"]
[WhiteElo "2120"]
[BlackElo "2179"]
[Result "1-0"]
[Round "07"]
[TimeControl "180+2"]
[Date "2023.05.31"]
[WhiteClock "0:00:18"]
[BlackClock "0:00:07"]

1. e4 {[%clk 0:03:00]}  c6 {[%clk 0:02:59]} 2. d4 {[%clk 0:03:00]}  d5 {[%clk 0:03:00]} 3. Nd2 {[%clk 0:03:00]}  dxe4 {[%clk 0:02:59]} 4. Nxe4 {[%clk 0:03:01]}  Nd7 {[%clk 0:03:00]} 5. Ng5 {[%clk 0:03:00]}  Ngf6 {[%clk 0:02:59]} 6. Bc4 {[%clk 0:03:00]}  e6 {[%clk 0:02:59]} 7. Qe2 {[%clk 0:03:00]}  Nb6 {[%clk 0:02:51]} 8. Bd3 {[%clk 0:03:00]}  Qxd4 {[%clk 0:02:42]} 9. N1f3 {[%clk 0:02:59]}  Qb4+ {[%clk 0:02:39]} 10. c3 {[%clk 0:02:49]}  Qd6 {[%clk 0:02:38]} 11. Ne5 {[%clk 0:02:49]}  Qc5 {[%clk 0:02:30]} 12. Ngxf7 {[%clk 0:02:36]}  Rg8 {[%clk 0:02:30]} 13. Be3 {[%clk 0:02:29]}  Qd5 {[%clk 0:02:23]} 14. O-O-O {[%clk 0:01:47]}  Nbd7 {[%clk 0:02:20]} 15. Bc4 {[%clk 0:01:41]}  Qa5 {[%clk 0:02:18]} 16. Bf4 {[%clk 0:01:22]}  Nxe5 {[%clk 0:01:47]} 17. Nxe5 {[%clk 0:01:18]}  Be7 {[%clk 0:01:23]} 18. Rhe1 {[%clk 0:01:09]}  Kf8 {[%clk 0:01:00]} 19. Bb3 {[%clk 0:01:04]}  Qa6 {[%clk 0:00:57]} 20. Qf3 {[%clk 0:00:56]}  Qb6 {[%clk 0:00:50]} 21. Nc4 {[%clk 0:00:46]}  Qc5 {[%clk 0:00:44]} 22. g4 {[%clk 0:00:35]}  a5 {[%clk 0:00:26]} 23. Re5 {[%clk 0:00:34]}  a4 {[%clk 0:00:19]} 24. Rxc5 {[%clk 0:00:33]}  axb3 {[%clk 0:00:20]} 25. axb3 {[%clk 0:00:29]}  Ra1+ {[%clk 0:00:19]} 26. Kc2 {[%clk 0:00:29]}  Rxd1 {[%clk 0:00:20]} 27. Qxd1 {[%clk 0:00:21]}  Bxc5 {[%clk 0:00:20]} 28. Bd6+ {[%clk 0:00:20]}  Bxd6 {[%clk 0:00:19]} 29. Qxd6+ {[%clk 0:00:21]}  Kf7 {[%clk 0:00:19]} 30. Ne5+ {[%clk 0:00:21]}  Ke8 {[%clk 0:00:18]} 31. Qc7 {[%clk 0:00:20]}  Bd7 {[%clk 0:00:16]} 32. Qb8+ {[%clk 0:00:18]}  Ke7 {[%clk 0:00:15]} 33. Qxb7 {[%clk 0:00:18]}  Kd6 {[%clk 0:00:16]} 34. Nc4+ {[%clk 0:00:18]}  Ke7 {[%clk 0:00:15]} 35. Qb4+ {[%clk 0:00:18]}  Kd8 {[%clk 0:00:14]} 36. f3 {[%clk 0:00:18]}  h6 {[%clk 0:00:13]} 37. Qd6 {[%clk 0:00:18]}  Nd5 {[%clk 0:00:13]} 38. Ne5 {[%clk 0:00:17]}  Nf6 {[%clk 0:00:12]} 39. f4 {[%clk 0:00:17]}  Ke8 {[%clk 0:00:12]} 40. g5 {[%clk 0:00:17]}  hxg5 {[%clk 0:00:12]} 41. fxg5 {[%clk 0:00:18]}  Bc8 {[%clk 0:00:12]} 42. gxf6 {[%clk 0:00:18]}  gxf6 {[%clk 0:00:13]} 43. Qxc6+ {[%clk 0:00:18]}  Kd8 {[%clk 0:00:13]} 44. Qd6+ {[%clk 0:00:18]}  Ke8 {[%clk 0:00:14]} 45. Nc6 {[%clk 0:00:18]}  Kf7 {[%clk 0:00:13]} 46. Qe7+ {[%clk 0:00:18]}  Kg6 {[%clk 0:00:13]} 47. Nd4 {[%clk 0:00:19]}  e5 {[%clk 0:00:13]} 48. Ne6 {[%clk 0:00:18]}  Kf5 {[%clk 0:00:11]} 49. Nf8 {[%clk 0:00:17]}  Ba6 {[%clk 0:00:09]} 50. Qh7+ {[%clk 0:00:17]}  Kf4 {[%clk 0:00:09]} 51. Qxg8 {[%clk 0:00:17]}  f5 {[%clk 0:00:10]} 52. Kd2 {[%clk 0:00:18]}  e4 {[%clk 0:00:11]} 53. Ne6+ {[%clk 0:00:18]}  Ke5 {[%clk 0:00:10]} 54. Qf7 {[%clk 0:00:18]}  Bc8 {[%clk 0:00:09]} 55. Nd4 {[%clk 0:00:17]}  f4 {[%clk 0:00:06]} 56. Qe8+ {[%clk 0:00:17]}  Kd5 {[%clk 0:00:07]} 57. Qxc8 {[%clk 0:00:18]}  f3 {[%clk 0:00:08]} 58. Ke3 {[%clk 0:00:17]}  f2 {[%clk 0:00:07]} 59. Qe6+ {[%clk 0:00:17]}  Kc5 {[%clk 0:00:07]} 60. b4# {[%clk 0:00:18]} 1-0


[Site "https://www.chess.com"]

[Event "Titled Tuesday Blitz May 30 Late 2023"]
[White "SergioMoralesG"]
[Black "Padalka, Artem"]
[BlackFideId "14118637"]
[WhiteElo "2518"]
[BlackElo "2073"]
[Result "1-0"]
[Round "07"]
[TimeControl "180+2"]
[Date "2023.05.31"]
[WhiteClock "0:00:16"]
[BlackClock "0:00:44"]

1. e4 {[%clk 0:03:00]}  c5 {[%clk 0:02:59]} 2. Nf3 {[%clk 0:03:00]}  d6 {[%clk 0:02:59]} 3. Bb5+ {[%clk 0:02:59]}  Bd7 {[%clk 0:02:59]} 4. Bxd7+ {[%clk 0:02:58]}  Qxd7 {[%clk 0:03:00]} 5. c4 {[%clk 0:02:58]}  g6 {[%clk 0:02:58]} 6. d4 {[%clk 0:02:57]}  cxd4 {[%clk 0:02:58]} 7. Nxd4 {[%clk 0:02:57]}  Bg7 {[%clk 0:02:58]} 8. Nc3 {[%clk 0:02:56]}  Nc6 {[%clk 0:02:58]} 9. Be3 {[%clk 0:02:56]}  Nf6 {[%clk 0:02:53]} 10. h3 {[%clk 0:02:54]}  O-O {[%clk 0:02:53]} 11. O-O {[%clk 0:02:54]}  Rfc8 {[%clk 0:02:53]} 12. b3 {[%clk 0:02:47]}  Nxd4 {[%clk 0:02:49]} 13. Bxd4 {[%clk 0:02:45]}  a6 {[%clk 0:02:49]} 14. e5 {[%clk 0:02:33]}  dxe5 {[%clk 0:02:46]} 15. Bxe5 {[%clk 0:02:34]}  Qc6 {[%clk 0:02:36]} 16. Qe2 {[%clk 0:02:28]}  Rd8 {[%clk 0:02:17]} 17. Rad1 {[%clk 0:02:25]}  Qe6 {[%clk 0:02:11]} 18. Bc7 {[%clk 0:02:11]}  Qxe2 {[%clk 0:02:08]} 19. Nxe2 {[%clk 0:02:11]}  Rdc8 {[%clk 0:02:03]} 20. Bb6 {[%clk 0:02:00]}  Rc6 {[%clk 0:01:58]} 21. Be3 {[%clk 0:02:00]}  b5 {[%clk 0:01:47]} 22. c5 {[%clk 0:01:57]}  Ne4 {[%clk 0:01:31]} 23. b4 {[%clk 0:01:49]}  a5 {[%clk 0:01:28]} 24. a3 {[%clk 0:01:49]}  axb4 {[%clk 0:01:28]} 25. axb4 {[%clk 0:01:50]}  Nc3 {[%clk 0:01:19]} 26. Nxc3 {[%clk 0:01:26]}  Bxc3 {[%clk 0:01:20]} 27. Bd2 {[%clk 0:01:25]}  Bf6 {[%clk 0:01:14]} 28. Rfe1 {[%clk 0:01:18]}  Kg7 {[%clk 0:01:12]} 29. Bf4 {[%clk 0:01:16]}  Ra4 {[%clk 0:01:07]} 30. Rb1 {[%clk 0:01:11]}  Bc3 {[%clk 0:01:05]} 31. Be5+ {[%clk 0:01:04]}  Bxe5 {[%clk 0:01:04]} 32. Rxe5 {[%clk 0:01:05]}  Kf6 {[%clk 0:01:02]} 33. Rd5 {[%clk 0:01:04]}  Rca6 {[%clk 0:01:00]} 34. Rb3 {[%clk 0:00:57]}  Ra3 {[%clk 0:00:59]} 35. Rxa3 {[%clk 0:00:42]}  Rxa3 {[%clk 0:01:00]} 36. c6 {[%clk 0:00:40]}  Rc3 {[%clk 0:01:00]} 37. Rc5 {[%clk 0:00:30]}  Rxc5 {[%clk 0:00:59]} 38. bxc5 {[%clk 0:00:31]}  Ke6 {[%clk 0:00:55]} 39. Kf1 {[%clk 0:00:31]}  f5 {[%clk 0:00:49]} 40. f4 {[%clk 0:00:23]}  h6 {[%clk 0:00:49]} 41. Ke2 {[%clk 0:00:22]}  g5 {[%clk 0:00:49]} 42. g3 {[%clk 0:00:22]}  b4 {[%clk 0:00:47]} 43. Kd3 {[%clk 0:00:21]}  b3 {[%clk 0:00:46]} 44. Kc3 {[%clk 0:00:21]}  h5 {[%clk 0:00:46]} 45. h4 {[%clk 0:00:18]}  gxh4 {[%clk 0:00:44]} 46. gxh4 {[%clk 0:00:18]}  Kd5 {[%clk 0:00:44]} 47. c7 {[%clk 0:00:17]}  Kxc5 {[%clk 0:00:43]} 48. c8=Q+ {[%clk 0:00:17]}  Kd5 {[%clk 0:00:44]} 49. Qxf5+ {[%clk 0:00:16]}  Kd6 {[%clk 0:00:44]} 50. Qxh5 {[%clk 0:00:16]} 1-0


[Site "https://www.chess.com"]

[Event "Titled Tuesday Blitz May 30 Late 2023"]
[White "Liu, Casper"]
[Black "Skuhala, Barbara"]
[WhiteFideId "1454153"]
[BlackFideId "14605465"]
[WhiteElo "2221"]
[BlackElo "2072"]
[Result "1-0"]
[Round "07"]
[TimeControl "180+2"]
[Date "2023.05.31"]
[WhiteClock "0:01:02"]
[BlackClock "0:01:35"]

1. a3 {[%clk 0:02:54]}  Nf6 {[%clk 0:02:59]} 2. d4 {[%clk 0:02:54]}  e6 {[%clk 0:02:58]} 3. c4 {[%clk 0:02:53]}  d5 {[%clk 0:02:59]} 4. Nc3 {[%clk 0:02:53]}  b6 {[%clk 0:02:58]} 5. cxd5 {[%clk 0:02:53]}  exd5 {[%clk 0:02:58]} 6. Bg5 {[%clk 0:02:52]}  Be7 {[%clk 0:02:56]} 7. e3 {[%clk 0:02:52]}  O-O {[%clk 0:02:55]} 8. Bd3 {[%clk 0:02:52]}  Ba6 {[%clk 0:02:56]} 9. Bc2 {[%clk 0:02:42]}  c5 {[%clk 0:02:55]} 10. Bxf6 {[%clk 0:02:27]}  Bxf6 {[%clk 0:02:53]} 11. Qh5 {[%clk 0:02:27]}  g6 {[%clk 0:02:50]} 12. Qxd5 {[%clk 0:02:28]}  Nd7 {[%clk 0:02:48]} 13. Nf3 {[%clk 0:02:22]}  cxd4 {[%clk 0:02:44]} 14. Nxd4 {[%clk 0:02:22]}  Nc5 {[%clk 0:02:42]} 15. O-O-O {[%clk 0:02:16]}  Qc7 {[%clk 0:02:29]} 16. Qc6 {[%clk 0:02:13]}  Qe5 {[%clk 0:02:23]} 17. Nf3 {[%clk 0:02:13]}  Qe6 {[%clk 0:02:14]} 18. Rd6 {[%clk 0:02:12]}  Nb3+ {[%clk 0:02:11]} 19. Kb1 {[%clk 0:02:06]}  Qg4 {[%clk 0:02:09]} 20. Rxf6 {[%clk 0:02:01]}  Qxg2 {[%clk 0:02:09]} 21. Rg1 {[%clk 0:02:00]}  Nd2+ {[%clk 0:02:09]} 22. Ka1 {[%clk 0:01:55]}  Qxf2 {[%clk 0:02:08]} 23. Rfxg6+ {[%clk 0:01:35]}  fxg6 {[%clk 0:02:07]} 24. Rxg6+ {[%clk 0:01:34]}  Kh8 {[%clk 0:02:05]} 25. Qd7 {[%clk 0:01:17]}  Qf1+ {[%clk 0:01:38]} 26. Nb1 {[%clk 0:01:05]}  hxg6 {[%clk 0:01:37]} 27. Bxg6 {[%clk 0:01:02]}  Qh3 {[%clk 0:01:35]} 28. Qxh3+ {[%clk 0:01:02]} 1-0


[Site "https://www.chess.com"]

[Event "Titled Tuesday Blitz May 30 Late 2023"]
[White "Magallanes, Rey Jomar"]
[Black "Senft, Sean"]
[WhiteFideId "5205948"]
[BlackFideId "2044960"]
[WhiteElo "2274"]
[BlackElo "1989"]
[Result "1-0"]
[Round "07"]
[TimeControl "180+2"]
[Date "2023.05.31"]
[WhiteClock "0:00:59"]
[BlackClock "0:00:14"]

1. e4 {[%clk 0:03:00]}  c5 {[%clk 0:03:00]} 2. Nf3 {[%clk 0:02:59]}  d6 {[%clk 0:03:00]} 3. d4 {[%clk 0:02:59]}  cxd4 {[%clk 0:03:01]} 4. Nxd4 {[%clk 0:02:58]}  Nf6 {[%clk 0:03:02]} 5. Nc3 {[%clk 0:02:58]}  a6 {[%clk 0:03:03]} 6. Be2 {[%clk 0:02:57]}  e5 {[%clk 0:03:03]} 7. Nb3 {[%clk 0:02:57]}  Be7 {[%clk 0:03:03]} 8. O-O {[%clk 0:02:58]}  O-O {[%clk 0:03:04]} 9. Qd3 {[%clk 0:02:58]}  Be6 {[%clk 0:02:59]} 10. Bd2 {[%clk 0:02:58]}  Nbd7 {[%clk 0:02:59]} 11. Nd5 {[%clk 0:02:58]}  Bxd5 {[%clk 0:02:57]} 12. exd5 {[%clk 0:02:59]}  b5 {[%clk 0:02:55]} 13. Na5 {[%clk 0:02:59]}  Nc5 {[%clk 0:02:48]} 14. Qf3 {[%clk 0:02:58]}  e4 {[%clk 0:02:28]} 15. Qf5 {[%clk 0:02:44]}  g6 {[%clk 0:02:26]} 16. Qg5 {[%clk 0:02:34]}  h6 {[%clk 0:01:34]} 17. Qxh6 {[%clk 0:02:13]}  Nxd5 {[%clk 0:01:33]} 18. Nc6 {[%clk 0:02:11]}  Qd7 {[%clk 0:01:33]} 19. Nxe7+ {[%clk 0:02:10]}  Qxe7 {[%clk 0:01:24]} 20. c4 {[%clk 0:02:09]}  bxc4 {[%clk 0:01:04]} 21. Bxc4 {[%clk 0:02:10]}  Nf6 {[%clk 0:01:04]} 22. Qxg6+ {[%clk 0:02:09]}  Kh8 {[%clk 0:01:02]} 23. Qh6+ {[%clk 0:02:06]}  Kg8 {[%clk 0:01:02]} 24. Bc3 {[%clk 0:01:52]}  Ncd7 {[%clk 0:00:59]} 25. Rae1 {[%clk 0:01:25]}  d5 {[%clk 0:00:36]} 26. Bxd5 {[%clk 0:01:11]}  Ne5 {[%clk 0:00:29]} 27. Qg5+ {[%clk 0:00:59]}  Kh8 {[%clk 0:00:14]} 28. Bxe5 {[%clk 0:00:59]} 1-0


[Site "https://www.chess.com"]

[Event "Titled Tuesday Blitz May 30 Late 2023"]
[White "rionelG"]
[Black "Toncheva, Nadya"]
[BlackFideId "2924056"]
[WhiteElo "2196"]
[BlackElo "2101"]
[Result "0-1"]
[Round "07"]
[TimeControl "180+2"]
[Date "2023.05.31"]
[WhiteClock "0:00:01"]
[BlackClock "0:00:33"]

1. e4 {[%clk 0:02:44]}  c5 {[%clk 0:03:00]} 2. g3 {[%clk 0:02:44]}  Nc6 {[%clk 0:03:00]} 3. Bg2 {[%clk 0:02:44]}  e6 {[%clk 0:02:58]} 4. d3 {[%clk 0:02:43]}  Nf6 {[%clk 0:02:58]} 5. Nf3 {[%clk 0:02:41]}  Qc7 {[%clk 0:02:56]} 6. O-O {[%clk 0:02:40]}  Be7 {[%clk 0:02:56]} 7. Re1 {[%clk 0:02:39]}  O-O {[%clk 0:02:56]} 8. e5 {[%clk 0:02:39]}  Ne8 {[%clk 0:02:49]} 9. Bf4 {[%clk 0:02:26]}  d6 {[%clk 0:02:47]} 10. Nbd2 {[%clk 0:02:18]}  dxe5 {[%clk 0:02:39]} 11. Nxe5 {[%clk 0:02:17]}  Nxe5 {[%clk 0:02:36]} 12. Bxe5 {[%clk 0:02:18]}  Bd6 {[%clk 0:02:33]} 13. Bxd6 {[%clk 0:02:01]}  Nxd6 {[%clk 0:02:33]} 14. Qh5 {[%clk 0:01:55]}  Bd7 {[%clk 0:02:33]} 15. Ne4 {[%clk 0:01:51]}  Nxe4 {[%clk 0:02:30]} 16. Rxe4 {[%clk 0:01:46]}  g6 {[%clk 0:02:01]} 17. Qh6 {[%clk 0:00:38]}  f6 {[%clk 0:02:00]} 18. Bh3 {[%clk 0:00:27]}  Rae8 {[%clk 0:01:59]} 19. Rae1 {[%clk 0:00:26]}  Qd6 {[%clk 0:01:57]} 20. b3 {[%clk 0:00:24]}  Rf7 {[%clk 0:01:56]} 21. a4 {[%clk 0:00:23]}  b6 {[%clk 0:01:55]} 22. a5 {[%clk 0:00:21]}  bxa5 {[%clk 0:01:51]} 23. Qh4 {[%clk 0:00:20]}  Kg7 {[%clk 0:01:40]} 24. Rc4 {[%clk 0:00:19]}  Rfe7 {[%clk 0:01:25]} 25. Qf4 {[%clk 0:00:06]}  Qxf4 {[%clk 0:01:21]} 26. Rxf4 {[%clk 0:00:06]}  a4 {[%clk 0:01:00]} 27. bxa4 {[%clk 0:00:05]}  Rb8 {[%clk 0:01:01]} 28. Rc4 {[%clk 0:00:04]}  Rb4 {[%clk 0:00:56]} 29. Rxc5 {[%clk 0:00:04]}  Bxa4 {[%clk 0:00:55]} 30. Rxe6 {[%clk 0:00:02]}  Rbb7 {[%clk 0:00:46]} 31. Rxe7+ {[%clk 0:00:02]}  Rxe7 {[%clk 0:00:47]} 32. c3 {[%clk 0:00:01]}  Bc2 {[%clk 0:00:33]} 0-1


[Site "https://www.chess.com"]

[Event "Titled Tuesday Blitz May 30 Late 2023"]
[White "Gutkin, Ilya"]
[Black "Manu_ChessExcelsior"]
[WhiteFideId "16203470"]
[WhiteElo "2265"]
[BlackElo "2079"]
[Result "1-0"]
[Round "07"]
[TimeControl "180+2"]
[Date "2023.05.31"]
[WhiteClock "0:01:14"]
[BlackClock "0:01:07"]

1. e4 {[%clk 0:03:00]}  c6 {[%clk 0:03:00]} 2. d4 {[%clk 0:03:00]}  d5 {[%clk 0:03:00]} 3. Nc3 {[%clk 0:03:00]}  dxe4 {[%clk 0:03:01]} 4. Nxe4 {[%clk 0:03:01]}  Nf6 {[%clk 0:03:01]} 5. Qe2 {[%clk 0:03:00]}  Nxe4 {[%clk 0:03:01]} 6. Qxe4 {[%clk 0:03:01]}  g6 {[%clk 0:03:01]} 7. Bc4 {[%clk 0:02:58]}  Bg7 {[%clk 0:03:01]} 8. Nf3 {[%clk 0:02:58]}  O-O {[%clk 0:02:57]} 9. O-O {[%clk 0:02:56]}  Nd7 {[%clk 0:02:57]} 10. h3 {[%clk 0:02:53]}  a5 {[%clk 0:02:40]} 11. c3 {[%clk 0:02:52]}  Nf6 {[%clk 0:02:29]} 12. Qe2 {[%clk 0:02:51]}  Qc7 {[%clk 0:02:14]} 13. Re1 {[%clk 0:02:50]}  Re8 {[%clk 0:02:09]} 14. Ne5 {[%clk 0:02:42]}  Nd5 {[%clk 0:02:01]} 15. Qf3 {[%clk 0:02:35]}  Be6 {[%clk 0:02:00]} 16. Nd3 {[%clk 0:02:27]}  b5 {[%clk 0:01:53]} 17. Bb3 {[%clk 0:02:22]}  a4 {[%clk 0:01:52]} 18. Bc2 {[%clk 0:02:21]}  Bf5 {[%clk 0:01:41]} 19. g4 {[%clk 0:02:17]}  Bxd3 {[%clk 0:01:31]} 20. Bxd3 {[%clk 0:02:18]}  e5 {[%clk 0:01:31]} 21. dxe5 {[%clk 0:01:39]}  Rxe5 {[%clk 0:01:24]} 22. Rxe5 {[%clk 0:01:38]}  Qxe5 {[%clk 0:01:19]} 23. Bd2 {[%clk 0:01:37]}  a3 {[%clk 0:01:08]} 24. Re1 {[%clk 0:01:16]}  Qe6 {[%clk 0:01:07]} 25. Rxe6 {[%clk 0:01:14]} 1-0


[Site "https://www.chess.com"]